[Event "Titled Tuesday Blitz September 13 Early 2022"]
[White "Zenin, Dmitry"]
[Black "Makarian, Rudik"]
[WhiteFideId "4127897"]
[BlackFideId "44105681"]
[WhiteElo "2215"]
[BlackElo "2410"]
[Result "0-1"]
[Round "03"]
[TimeControl "180+1"]
[Date "2022.09.13"]
[WhiteClock "0:00:51"]
[BlackClock "0:02:06"]

1. d4 {[%clk 0:03:00]}  Nf6 {[%clk 0:02:59]} 2. c4 {[%clk 0:03:00]}  g6 {[%clk 0:03:00]} 3. Nc3 {[%clk 0:03:00]}  Bg7 {[%clk 0:03:01]} 4. e4 {[%clk 0:03:00]}  c5 {[%clk 0:03:00]} 5. Nf3 {[%clk 0:02:59]}  O-O {[%clk 0:02:59]} 6. Be2 {[%clk 0:02:52]}  Nc6 {[%clk 0:02:53]} 7. d5 {[%clk 0:02:43]}  Nd4 {[%clk 0:02:51]} 8. Nxd4 {[%clk 0:02:43]}  cxd4 {[%clk 0:02:51]} 9. Qxd4 {[%clk 0:02:43]}  d6 {[%clk 0:02:52]} 10. O-O {[%clk 0:02:39]}  a6 {[%clk 0:02:50]} 11. Be3 {[%clk 0:02:31]}  Ng4 {[%clk 0:02:48]} 12. Qd2 {[%clk 0:02:28]}  Nxe3 {[%clk 0:02:48]} 13. Qxe3 {[%clk 0:02:29]}  Bd7 {[%clk 0:02:49]} 14. c5 {[%clk 0:02:25]}  Qa5 {[%clk 0:02:45]} 15. cxd6 {[%clk 0:02:22]}  exd6 {[%clk 0:02:46]} 16. a3 {[%clk 0:02:19]}  Rac8 {[%clk 0:02:46]} 17. Rfc1 {[%clk 0:02:17]}  Qc5 {[%clk 0:02:34]} 18. Qxc5 {[%clk 0:02:13]}  Rxc5 {[%clk 0:02:35]} 19. Nd1 {[%clk 0:02:03]}  Rfc8 {[%clk 0:02:34]} 20. Rxc5 {[%clk 0:02:03]}  Rxc5 {[%clk 0:02:35]} 21. Bd3 {[%clk 0:02:03]}  f5 {[%clk 0:02:34]} 22. f3 {[%clk 0:01:59]}  f4 {[%clk 0:02:32]} 23. Kf1 {[%clk 0:01:59]}  Bb5 {[%clk 0:02:31]} 24. Bxb5 {[%clk 0:01:57]}  axb5 {[%clk 0:02:31]} 25. a4 {[%clk 0:01:49]}  b4 {[%clk 0:02:31]} 26. a5 {[%clk 0:01:49]}  Rc2 {[%clk 0:02:25]} 27. a6 {[%clk 0:01:47]}  bxa6 {[%clk 0:02:25]} 28. Rxa6 {[%clk 0:01:47]}  Be5 {[%clk 0:02:25]} 29. Rb6 {[%clk 0:01:45]}  Rd2 {[%clk 0:02:26]} 30. Ke1 {[%clk 0:01:42]}  Rxg2 {[%clk 0:02:26]} 31. Rb5 {[%clk 0:01:39]}  Rxh2 {[%clk 0:02:25]} 32. Rxb4 {[%clk 0:01:38]}  h5 {[%clk 0:02:25]} 33. Nf2 {[%clk 0:01:34]}  Rg2 {[%clk 0:02:21]} 34. Kf1 {[%clk 0:01:34]}  Rg3 {[%clk 0:02:21]} 35. Rb3 {[%clk 0:01:34]}  Kf7 {[%clk 0:02:19]} 36. Nh1 {[%clk 0:01:30]}  Rh3 {[%clk 0:02:20]} 37. Kg2 {[%clk 0:01:29]}  Rh4 {[%clk 0:02:19]} 38. Rb7+ {[%clk 0:01:26]}  Kf6 {[%clk 0:02:19]} 39. b4 {[%clk 0:01:26]}  g5 {[%clk 0:02:18]} 40. Rb8 {[%clk 0:01:19]}  g4 {[%clk 0:02:18]} 41. Nf2 {[%clk 0:01:14]}  Bd4 {[%clk 0:02:07]} 42. Rf8+ {[%clk 0:01:06]}  Ke7 {[%clk 0:02:06]} 43. Rxf4 {[%clk 0:01:06]}  Be5 {[%clk 0:02:06]} 44. Rf5 {[%clk 0:01:05]}  Rh2+ {[%clk 0:02:06]} 45. Kg1 {[%clk 0:01:05]}  g3 {[%clk 0:02:06]} 46. Nd3 {[%clk 0:00:51]}  Bd4+ {[%clk 0:02:06]} 0-1


[Site "https://www.chess.com"]

[Event "Titled Tuesday Blitz September 13 Early 2022"]
[White "Acor, Corey"]
[Black "Le, Tuan Minh"]
[WhiteFideId "2024861"]
[BlackFideId "12401153"]
[WhiteElo "2340"]
[BlackElo "2530"]
[Result "0-1"]
[Round "04"]
[TimeControl "180+1"]
[Date "2022.09.13"]
[WhiteClock "0:00:01"]
[BlackClock "0:00:05"]

1. e4 {[%clk 0:03:00]}  c5 {[%clk 0:03:00]} 2. Nc3 {[%clk 0:03:00]}  Nc6 {[%clk 0:03:00]} 3. g3 {[%clk 0:03:01]}  g6 {[%clk 0:03:00]} 4. Bg2 {[%clk 0:03:02]}  Bg7 {[%clk 0:03:00]} 5. d3 {[%clk 0:03:02]}  d6 {[%clk 0:03:00]} 6. Be3 {[%clk 0:03:03]}  Rb8 {[%clk 0:02:59]} 7. Nge2 {[%clk 0:03:02]}  Nf6 {[%clk 0:02:58]} 8. h3 {[%clk 0:03:00]}  O-O {[%clk 0:02:58]} 9. f4 {[%clk 0:02:54]}  Nd7 {[%clk 0:02:54]} 10. d4 {[%clk 0:02:51]}  cxd4 {[%clk 0:02:54]} 11. Nxd4 {[%clk 0:02:52]}  Nb6 {[%clk 0:02:53]} 12. b3 {[%clk 0:02:50]}  e5 {[%clk 0:02:39]} 13. Nxc6 {[%clk 0:02:41]}  bxc6 {[%clk 0:02:38]} 14. Qd2 {[%clk 0:02:36]}  d5 {[%clk 0:02:29]} 15. exd5 {[%clk 0:02:02]}  cxd5 {[%clk 0:02:28]} 16. Nxd5 {[%clk 0:02:03]}  exf4 {[%clk 0:02:09]} 17. Bxf4 {[%clk 0:01:43]}  Nxd5 {[%clk 0:02:08]} 18. Qxd5 {[%clk 0:01:15]}  Bc3+ {[%clk 0:01:50]} 19. Kf2 {[%clk 0:00:53]}  Qb6+ {[%clk 0:01:49]} 20. Be3 {[%clk 0:00:34]}  Qf6+ {[%clk 0:01:49]} 21. Bf3 {[%clk 0:00:20]}  Bxa1 {[%clk 0:00:57]} 22. Rxa1 {[%clk 0:00:16]}  Qxa1 {[%clk 0:00:57]} 23. Bd4 {[%clk 0:00:16]}  Qc1 {[%clk 0:00:45]} 24. Qe5 {[%clk 0:00:16]}  Qxc2+ {[%clk 0:00:45]} 25. Kg1 {[%clk 0:00:13]}  Qc1+ {[%clk 0:00:41]} 26. Kh2 {[%clk 0:00:13]}  Qd2+ {[%clk 0:00:41]} 27. Bg2 {[%clk 0:00:13]}  f6 {[%clk 0:00:36]} 28. Qd5+ {[%clk 0:00:05]}  Be6 {[%clk 0:00:35]} 29. Qxe6+ {[%clk 0:00:05]}  Rf7 {[%clk 0:00:35]} 30. Bxf6 {[%clk 0:00:03]}  Qd7 {[%clk 0:00:07]} 31. Qe5 {[%clk 0:00:02]}  Re8 {[%clk 0:00:07]} 32. Qc3 {[%clk 0:00:01]}  Re2 {[%clk 0:00:06]} 33. Bd4 {[%clk 0:00:02]}  Qd5 {[%clk 0:00:05]} 34. Qc8+ {[%clk 0:00:01]}  Rf8 {[%clk 0:00:05]} 0-1


[Site "https://www.chess.com"]

[Event "Titled Tuesday Blitz September 13 Early 2022"]
[White "Amin, Bassem"]
[Black "Bluebaum, Matthias"]
[WhiteFideId "10601457"]
[BlackFideId "24651516"]
[WhiteElo "2699"]
[BlackElo "2633"]
[Result "0-1"]
[Round "04"]
[TimeControl "180+1"]
[Date "2022.09.13"]
[WhiteClock "0:00:02"]
[BlackClock "0:00:24"]

1. e4 {[%clk 0:02:59]}  c6 {[%clk 0:02:57]} 2. d3 {[%clk 0:02:58]}  d5 {[%clk 0:02:58]} 3. Nd2 {[%clk 0:02:57]}  e5 {[%clk 0:02:58]} 4. Ngf3 {[%clk 0:02:58]}  Bd6 {[%clk 0:02:59]} 5. g3 {[%clk 0:02:57]}  Nf6 {[%clk 0:02:59]} 6. Bg2 {[%clk 0:02:57]}  O-O {[%clk 0:03:00]} 7. O-O {[%clk 0:02:58]}  Re8 {[%clk 0:03:01]} 8. b3 {[%clk 0:02:57]}  Nbd7 {[%clk 0:03:00]} 9. Bb2 {[%clk 0:02:57]}  Nf8 {[%clk 0:03:00]} 10. Re1 {[%clk 0:02:54]}  Ng6 {[%clk 0:03:00]} 11. d4 {[%clk 0:02:46]}  exd4 {[%clk 0:02:52]} 12. Nxd4 {[%clk 0:02:44]}  Be5 {[%clk 0:02:42]} 13. exd5 {[%clk 0:02:19]}  c5 {[%clk 0:02:41]} 14. Ne6 {[%clk 0:02:11]}  Bxe6 {[%clk 0:01:59]} 15. Bxe5 {[%clk 0:02:09]}  Bg4 {[%clk 0:02:00]} 16. f3 {[%clk 0:01:51]}  Nxe5 {[%clk 0:02:00]} 17. fxg4 {[%clk 0:01:51]}  Nexg4 {[%clk 0:02:01]} 18. Ne4 {[%clk 0:01:36]}  Ne5 {[%clk 0:01:34]} 19. c4 {[%clk 0:01:29]}  Nxe4 {[%clk 0:01:32]} 20. Rxe4 {[%clk 0:01:27]}  f5 {[%clk 0:01:32]} 21. Re2 {[%clk 0:01:19]}  Qd6 {[%clk 0:01:31]} 22. Qc2 {[%clk 0:01:17]}  g6 {[%clk 0:01:23]} 23. Rae1 {[%clk 0:01:17]}  Re7 {[%clk 0:01:24]} 24. Re3 {[%clk 0:00:36]}  Rae8 {[%clk 0:01:21]} 25. Qc3 {[%clk 0:00:32]}  Nf7 {[%clk 0:01:07]} 26. Re6 {[%clk 0:00:27]}  Rxe6 {[%clk 0:01:08]} 27. dxe6 {[%clk 0:00:25]}  Rxe6 {[%clk 0:01:08]} 28. Rxe6 {[%clk 0:00:24]}  Qxe6 {[%clk 0:01:09]} 29. Bxb7 {[%clk 0:00:24]}  Qe5 {[%clk 0:01:04]} 30. Qd2 {[%clk 0:00:19]}  Nd6 {[%clk 0:01:01]} 31. Bd5+ {[%clk 0:00:17]}  Kg7 {[%clk 0:01:02]} 32. Kg2 {[%clk 0:00:17]}  Kf6 {[%clk 0:01:02]} 33. Qf2 {[%clk 0:00:16]}  Ne4 {[%clk 0:00:58]} 34. Qe2 {[%clk 0:00:13]}  Qd4 {[%clk 0:00:56]} 35. Bxe4 {[%clk 0:00:11]}  Qxe4+ {[%clk 0:00:40]} 36. Kf2 {[%clk 0:00:11]}  Qxe2+ {[%clk 0:00:34]} 37. Kxe2 {[%clk 0:00:12]}  g5 {[%clk 0:00:34]} 38. a3 {[%clk 0:00:11]}  a5 {[%clk 0:00:35]} 39. Kd3 {[%clk 0:00:11]}  Ke5 {[%clk 0:00:31]} 40. Ke3 {[%clk 0:00:02]}  f4+ {[%clk 0:00:30]} 41. gxf4+ {[%clk 0:00:03]}  gxf4+ {[%clk 0:00:30]} 42. Kd3 {[%clk 0:00:03]}  Kf5 {[%clk 0:00:26]} 43. h3 {[%clk 0:00:03]}  h6 {[%clk 0:00:25]} 44. b4 {[%clk 0:00:03]}  axb4 {[%clk 0:00:25]} 45. axb4 {[%clk 0:00:04]}  cxb4 {[%clk 0:00:25]} 46. c5 {[%clk 0:00:04]}  b3 {[%clk 0:00:24]} 47. Kc3 {[%clk 0:00:02]}  f3 {[%clk 0:00:24]} 0-1


[Site "https://www.chess.com"]

[Event "Titled Tuesday Blitz September 13 Early 2022"]
[White "Bachmann, Axel"]
[Black "Shuvalova, Polina"]
[WhiteFideId "3700488"]
[BlackFideId "24171760"]
[WhiteElo "2595"]
[BlackElo "2330"]
[Result "1-0"]
[Round "04"]
[TimeControl "180+1"]
[Date "2022.09.13"]
[WhiteClock "0:00:07"]
[BlackClock "0:00:01"]

1. e4 {[%clk 0:02:58]}  c6 {[%clk 0:02:59]} 2. d4 {[%clk 0:02:54]}  d5 {[%clk 0:03:00]} 3. exd5 {[%clk 0:02:53]}  cxd5 {[%clk 0:03:00]} 4. Bd3 {[%clk 0:02:53]}  Nc6 {[%clk 0:03:01]} 5. c3 {[%clk 0:02:53]}  Nf6 {[%clk 0:03:00]} 6. h3 {[%clk 0:02:48]}  e5 {[%clk 0:02:59]} 7. dxe5 {[%clk 0:02:47]}  Nxe5 {[%clk 0:03:00]} 8. Be2 {[%clk 0:02:47]}  Bd6 {[%clk 0:02:51]} 9. Be3 {[%clk 0:02:41]}  O-O {[%clk 0:02:50]} 10. Nd2 {[%clk 0:02:42]}  Bf5 {[%clk 0:02:48]} 11. Nb3 {[%clk 0:02:31]}  Nc4 {[%clk 0:02:43]} 12. Bc1 {[%clk 0:02:32]}  Re8 {[%clk 0:02:40]} 13. Nf3 {[%clk 0:02:31]}  Qe7 {[%clk 0:02:33]} 14. Nbd4 {[%clk 0:02:31]}  Bd7 {[%clk 0:02:27]} 15. O-O {[%clk 0:02:31]}  Rad8 {[%clk 0:02:26]} 16. Re1 {[%clk 0:02:29]}  Ne4 {[%clk 0:02:23]} 17. Qc2 {[%clk 0:01:42]}  Ne5 {[%clk 0:02:19]} 18. Be3 {[%clk 0:01:31]}  Qf6 {[%clk 0:02:11]} 19. Rad1 {[%clk 0:01:26]}  h6 {[%clk 0:02:06]} 20. Nxe5 {[%clk 0:01:21]}  Bxe5 {[%clk 0:01:59]} 21. Nf3 {[%clk 0:01:21]}  Bf5 {[%clk 0:01:42]} 22. Nxe5 {[%clk 0:01:16]}  Nxf2 {[%clk 0:01:27]} 23. Bd3 {[%clk 0:01:15]}  Nxd1 {[%clk 0:01:08]} 24. Bd4 {[%clk 0:00:55]}  Bxd3 {[%clk 0:01:03]} 25. Nxd3 {[%clk 0:00:56]}  Rxe1+ {[%clk 0:00:42]} 26. Nxe1 {[%clk 0:00:57]}  Qa6 {[%clk 0:00:41]} 27. Qxd1 {[%clk 0:00:55]}  Qxa2 {[%clk 0:00:40]} 28. Qg4 {[%clk 0:00:50]}  g5 {[%clk 0:00:31]} 29. Qe2 {[%clk 0:00:36]}  Qa6 {[%clk 0:00:20]} 30. Qe5 {[%clk 0:00:34]}  f6 {[%clk 0:00:19]} 31. Qe7 {[%clk 0:00:34]}  Rf8 {[%clk 0:00:19]} 32. Nf3 {[%clk 0:00:29]}  Rf7 {[%clk 0:00:19]} 33. Qd8+ {[%clk 0:00:29]}  Kg7 {[%clk 0:00:19]} 34. b4 {[%clk 0:00:24]}  Qc6 {[%clk 0:00:18]} 35. h4 {[%clk 0:00:23]}  Qd7 {[%clk 0:00:12]} 36. Qb8 {[%clk 0:00:20]}  g4 {[%clk 0:00:10]} 37. Nh2 {[%clk 0:00:20]}  b6 {[%clk 0:00:10]} 38. Nf1 {[%clk 0:00:20]}  Qf5 {[%clk 0:00:06]} 39. Ng3 {[%clk 0:00:19]}  Qb1+ {[%clk 0:00:05]} 40. Kh2 {[%clk 0:00:19]}  Qg6 {[%clk 0:00:05]} 41. Qf4 {[%clk 0:00:18]}  Kh7 {[%clk 0:00:05]} 42. Qd6 {[%clk 0:00:13]}  f5 {[%clk 0:00:04]} 43. Qe5 {[%clk 0:00:13]}  Qg8 {[%clk 0:00:02]} 44. Nh5 {[%clk 0:00:11]}  f4 {[%clk 0:00:01]} 45. Nxf4 {[%clk 0:00:09]}  g3+ {[%clk 0:00:01]} 46. Kh3 {[%clk 0:00:08]}  Qf8 {[%clk 0:00:02]} 47. Ne6 {[%clk 0:00:07]}  Qc8 {[%clk 0:00:02]} 48. Kxg3 {[%clk 0:00:07]}  Re7 {[%clk 0:00:01]} 49. Qf5+ {[%clk 0:00:06]}  Kg8 {[%clk 0:00:02]} 50. Qg6+ {[%clk 0:00:07]}  Rg7 {[%clk 0:00:01]} 51. Qxg7# {[%clk 0:00:07]} 1-0


[Site "https://www.chess.com"]

[Event "Titled Tuesday Blitz September 13 Early 2022"]
[White "Bacrot, Etienne"]
[Black "Csonka, Balazs"]
[WhiteFideId "605506"]
[BlackFideId "742910"]
[WhiteElo "2666"]
[BlackElo "2404"]
[Result "1-0"]
[Round "04"]
[TimeControl "180+1"]
[Date "2022.09.13"]
[WhiteClock "0:00:05"]
[BlackClock "0:00:01"]

1. e4 {[%clk 0:03:00]}  c5 {[%clk 0:03:00]} 2. Nf3 {[%clk 0:03:01]}  d6 {[%clk 0:03:00]} 3. Bb5+ {[%clk 0:02:59]}  Nd7 {[%clk 0:02:57]} 4. d4 {[%clk 0:02:57]}  cxd4 {[%clk 0:02:44]} 5. Qxd4 {[%clk 0:02:58]}  Nf6 {[%clk 0:02:39]} 6. O-O {[%clk 0:02:56]}  a6 {[%clk 0:02:35]} 7. Be2 {[%clk 0:02:55]}  g6 {[%clk 0:02:08]} 8. Nc3 {[%clk 0:02:52]}  Bg7 {[%clk 0:02:07]} 9. Rd1 {[%clk 0:02:52]}  O-O {[%clk 0:02:04]} 10. e5 {[%clk 0:02:52]}  dxe5 {[%clk 0:02:04]} 11. Nxe5 {[%clk 0:02:52]}  Nh5 {[%clk 0:01:30]} 12. f4 {[%clk 0:02:43]}  Qa5 {[%clk 0:01:20]} 13. Nd5 {[%clk 0:02:11]}  e6 {[%clk 0:01:06]} 14. Ne7+ {[%clk 0:01:29]}  Kh8 {[%clk 0:01:06]} 15. Nxc8 {[%clk 0:01:29]}  Nxe5 {[%clk 0:01:06]} 16. Qb6 {[%clk 0:01:29]}  Qa4 {[%clk 0:00:45]} 17. b3 {[%clk 0:01:11]}  Qe4 {[%clk 0:00:40]} 18. Bxh5 {[%clk 0:01:10]}  gxh5 {[%clk 0:00:35]} 19. Nd6 {[%clk 0:01:05]}  Qe2 {[%clk 0:00:22]} 20. Ba3 {[%clk 0:00:30]}  Nf3+ {[%clk 0:00:08]} 21. Kh1 {[%clk 0:00:30]}  Nh4 {[%clk 0:00:04]} 22. Qg1 {[%clk 0:00:28]}  Bxa1 {[%clk 0:00:03]} 23. Re1 {[%clk 0:00:28]}  Qg4 {[%clk 0:00:02]} 24. Rxa1 {[%clk 0:00:27]}  Nf5 {[%clk 0:00:03]} 25. Bb2+ {[%clk 0:00:26]}  f6 {[%clk 0:00:03]} 26. Ne4 {[%clk 0:00:27]}  Qg7 {[%clk 0:00:02]} 27. Rd1 {[%clk 0:00:26]}  Rae8 {[%clk 0:00:03]} 28. Qf2 {[%clk 0:00:25]}  e5 {[%clk 0:00:03]} 29. Qc5 {[%clk 0:00:19]}  Rd8 {[%clk 0:00:03]} 30. Rf1 {[%clk 0:00:17]}  Rc8 {[%clk 0:00:03]} 31. Qf2 {[%clk 0:00:17]}  Nd4 {[%clk 0:00:02]} 32. c3 {[%clk 0:00:14]}  Ne6 {[%clk 0:00:02]} 33. f5 {[%clk 0:00:10]}  Nf4 {[%clk 0:00:02]} 34. Qf3 {[%clk 0:00:09]}  Rcd8 {[%clk 0:00:03]} 35. g3 {[%clk 0:00:10]}  Rd3 {[%clk 0:00:02]} 36. Qf2 {[%clk 0:00:10]}  Nh3 {[%clk 0:00:02]} 37. Qg2 {[%clk 0:00:10]}  Ng5 {[%clk 0:00:01]} 38. Ba3 {[%clk 0:00:11]}  Nxe4 {[%clk 0:00:01]} 39. Bxf8 {[%clk 0:00:11]}  Qg4 {[%clk 0:00:02]} 40. Be7 {[%clk 0:00:08]}  Rd2 {[%clk 0:00:02]} 41. Qg1 {[%clk 0:00:06]}  Qh3 {[%clk 0:00:02]} 42. Rf3 {[%clk 0:00:04]}  Rc2 {[%clk 0:00:01]} 43. Re3 {[%clk 0:00:04]}  Nf2+ {[%clk 0:00:01]} 44. Qxf2 {[%clk 0:00:04]}  Rxf2 {[%clk 0:00:01]} 45. Bxf6+ {[%clk 0:00:05]} 1-0


[Site "https://www.chess.com"]

[Event "Titled Tuesday Blitz September 13 Early 2022"]
[White "Beerdsen, Thomas"]
[Black "Vidit, Santosh Gujrathi"]
[WhiteFideId "1030108"]
[BlackFideId "5029465"]
[WhiteElo "2567"]
[BlackElo "2654"]
[Result "1-0"]
[Round "04"]
[TimeControl "180+1"]
[Date "2022.09.13"]
[WhiteClock "0:00:14"]
[BlackClock "0:00:09"]

1. e4 {[%clk 0:02:55]}  Nc6 {[%clk 0:02:59]} 2. Nf3 {[%clk 0:02:55]}  d6 {[%clk 0:03:00]} 3. d4 {[%clk 0:02:55]}  Nf6 {[%clk 0:03:00]} 4. Nc3 {[%clk 0:02:55]}  g6 {[%clk 0:03:00]} 5. Bg5 {[%clk 0:02:55]}  Bg7 {[%clk 0:03:00]} 6. Qd2 {[%clk 0:02:55]}  h6 {[%clk 0:03:00]} 7. Bf4 {[%clk 0:02:55]}  Bg4 {[%clk 0:03:00]} 8. O-O-O {[%clk 0:02:55]}  Nd7 {[%clk 0:02:49]} 9. Be3 {[%clk 0:02:53]}  e5 {[%clk 0:02:46]} 10. dxe5 {[%clk 0:02:53]}  Ncxe5 {[%clk 0:02:41]} 11. Nxe5 {[%clk 0:02:52]}  Nxe5 {[%clk 0:02:36]} 12. f3 {[%clk 0:02:53]}  Be6 {[%clk 0:02:30]} 13. Kb1 {[%clk 0:02:52]}  h5 {[%clk 0:02:21]} 14. h3 {[%clk 0:02:49]}  Qd7 {[%clk 0:01:38]} 15. f4 {[%clk 0:02:44]}  Nc6 {[%clk 0:01:38]} 16. Nd5 {[%clk 0:02:35]}  a6 {[%clk 0:01:32]} 17. f5 {[%clk 0:02:16]}  gxf5 {[%clk 0:01:31]} 18. Bg5 {[%clk 0:02:14]}  fxe4 {[%clk 0:01:16]} 19. Nf6+ {[%clk 0:01:46]}  Bxf6 {[%clk 0:01:17]} 20. Bxf6 {[%clk 0:01:47]}  Rg8 {[%clk 0:01:17]} 21. g4 {[%clk 0:01:43]}  hxg4 {[%clk 0:01:06]} 22. hxg4 {[%clk 0:01:44]}  Ne7 {[%clk 0:00:59]} 23. Qd4 {[%clk 0:01:25]}  Nd5 {[%clk 0:00:52]} 24. Bh4 {[%clk 0:01:15]}  c5 {[%clk 0:00:49]} 25. Qxe4 {[%clk 0:01:09]}  Rxg4 {[%clk 0:00:49]} 26. Bg5 {[%clk 0:00:59]}  Qc6 {[%clk 0:00:37]} 27. Qf3 {[%clk 0:00:31]}  Kd7 {[%clk 0:00:31]} 28. Bh3 {[%clk 0:00:23]}  Nb4 {[%clk 0:00:03]} 29. Bxg4 {[%clk 0:00:19]}  Qxf3 {[%clk 0:00:03]} 30. Bxf3 {[%clk 0:00:19]}  Rg8 {[%clk 0:00:04]} 31. Bf4 {[%clk 0:00:17]}  d5 {[%clk 0:00:04]} 32. a3 {[%clk 0:00:17]}  Nc6 {[%clk 0:00:05]} 33. Bxd5 {[%clk 0:00:17]}  Nd4 {[%clk 0:00:05]} 34. Bxe6+ {[%clk 0:00:17]}  Kxe6 {[%clk 0:00:06]} 35. c3 {[%clk 0:00:16]}  Nf3 {[%clk 0:00:06]} 36. Rhf1 {[%clk 0:00:15]}  Nh4 {[%clk 0:00:06]} 37. Rd6+ {[%clk 0:00:14]}  Ke7 {[%clk 0:00:07]} 38. Rb6 {[%clk 0:00:14]}  Rg2 {[%clk 0:00:07]} 39. Rxb7+ {[%clk 0:00:14]}  Ke6 {[%clk 0:00:08]} 40. Rb6+ {[%clk 0:00:13]}  Kd5 {[%clk 0:00:08]} 41. Rd1+ {[%clk 0:00:13]}  Kc4 {[%clk 0:00:09]} 42. b3+ {[%clk 0:00:13]}  Kxc3 {[%clk 0:00:09]} 43. Be5# {[%clk 0:00:14]} 1-0


[Site "https://www.chess.com"]

[Event "Titled Tuesday Blitz September 13 Early 2022"]
[White "Demchenko, Anton"]
[Black "assezde36"]
[WhiteFideId "4160258"]
[WhiteElo "2539"]
[BlackElo "2754"]
[Result "0-1"]
[Round "04"]
[TimeControl "180+1"]
[Date "2022.09.13"]
[WhiteClock "0:00:03"]
[BlackClock "0:00:17"]

1. e4 {[%clk 0:03:00]}  c6 {[%clk 0:03:00]} 2. d4 {[%clk 0:03:00]}  d5 {[%clk 0:03:00]} 3. Nc3 {[%clk 0:02:59]}  dxe4 {[%clk 0:02:59]} 4. Nxe4 {[%clk 0:03:00]}  Nf6 {[%clk 0:03:00]} 5. Qd3 {[%clk 0:02:59]}  Nxe4 {[%clk 0:02:59]} 6. Qxe4 {[%clk 0:02:59]}  Nd7 {[%clk 0:02:59]} 7. Nf3 {[%clk 0:02:58]}  Nf6 {[%clk 0:03:00]} 8. Qd3 {[%clk 0:02:58]}  g6 {[%clk 0:02:57]} 9. Be2 {[%clk 0:02:57]}  Bg7 {[%clk 0:02:57]} 10. O-O {[%clk 0:02:57]}  O-O {[%clk 0:02:58]} 11. Re1 {[%clk 0:02:57]}  a5 {[%clk 0:02:57]} 12. a4 {[%clk 0:02:56]}  Qb6 {[%clk 0:02:53]} 13. Qa3 {[%clk 0:02:42]}  Re8 {[%clk 0:02:51]} 14. Bc4 {[%clk 0:02:36]}  Qc7 {[%clk 0:02:45]} 15. Qa2 {[%clk 0:02:34]}  e6 {[%clk 0:02:40]} 16. c3 {[%clk 0:02:34]}  b6 {[%clk 0:02:40]} 17. Bg5 {[%clk 0:02:28]}  Bb7 {[%clk 0:02:38]} 18. Ne5 {[%clk 0:02:25]}  c5 {[%clk 0:02:35]} 19. Bb5 {[%clk 0:02:21]}  Rec8 {[%clk 0:02:27]} 20. dxc5 {[%clk 0:01:59]}  Qxc5 {[%clk 0:02:22]} 21. Nxf7 {[%clk 0:01:47]}  Bd5 {[%clk 0:02:10]} 22. c4 {[%clk 0:01:46]}  Ng4 {[%clk 0:01:48]} 23. Re2 {[%clk 0:01:04]}  Bxg2 {[%clk 0:01:39]} 24. Kxg2 {[%clk 0:00:59]}  Kxf7 {[%clk 0:01:39]} 25. Bf4 {[%clk 0:00:48]}  Kg8 {[%clk 0:01:24]} 26. Bg3 {[%clk 0:00:32]}  Rf8 {[%clk 0:01:23]} 27. Rae1 {[%clk 0:00:31]}  Bd4 {[%clk 0:01:09]} 28. b3 {[%clk 0:00:30]}  Rf7 {[%clk 0:01:07]} 29. h3 {[%clk 0:00:29]}  Nf6 {[%clk 0:01:03]} 30. Rxe6 {[%clk 0:00:28]}  Nh5 {[%clk 0:01:04]} 31. Re8+ {[%clk 0:00:14]}  Rxe8 {[%clk 0:01:03]} 32. Rxe8+ {[%clk 0:00:08]}  Kg7 {[%clk 0:01:03]} 33. Re2 {[%clk 0:00:09]}  Qf5 {[%clk 0:00:55]} 34. Qd2 {[%clk 0:00:08]}  Qf3+ {[%clk 0:00:32]} 35. Kh2 {[%clk 0:00:08]}  Bc3 {[%clk 0:00:28]} 36. Qe3 {[%clk 0:00:07]}  Nxg3 {[%clk 0:00:15]} 37. Qxf3 {[%clk 0:00:04]}  Rxf3 {[%clk 0:00:16]} 38. fxg3 {[%clk 0:00:05]}  Bd4 {[%clk 0:00:17]} 39. Re7+ {[%clk 0:00:02]}  Kf6 {[%clk 0:00:17]} 40. Kg2 {[%clk 0:00:03]}  Rf2+ {[%clk 0:00:16]} 41. Kh1 {[%clk 0:00:03]}  Kxe7 {[%clk 0:00:17]} 0-1


[Site "https://www.chess.com"]

[Event "Titled Tuesday Blitz September 13 Early 2022"]
[White "Dilanyan, Grigor"]
[Black "Jobava, Baadur"]
[WhiteFideId "13303570"]
[BlackFideId "13601520"]
[WhiteElo "2264"]
[BlackElo "2582"]
[Result "0-1"]
[Round "04"]
[TimeControl "180+1"]
[Date "2022.09.13"]
[WhiteClock "0:00:13"]
[BlackClock "0:02:23"]

1. d4 {[%clk 0:03:00]}  d5 {[%clk 0:03:00]} 2. Nf3 {[%clk 0:03:00]}  Nf6 {[%clk 0:03:00]} 3. c4 {[%clk 0:02:59]}  dxc4 {[%clk 0:03:01]} 4. e3 {[%clk 0:02:59]}  Bg4 {[%clk 0:03:01]} 5. Bxc4 {[%clk 0:02:57]}  e6 {[%clk 0:03:02]} 6. h3 {[%clk 0:02:56]}  Bh5 {[%clk 0:03:03]} 7. Nc3 {[%clk 0:02:52]}  Nc6 {[%clk 0:03:02]} 8. O-O {[%clk 0:02:42]}  Bd6 {[%clk 0:03:02]} 9. Be2 {[%clk 0:02:42]}  O-O {[%clk 0:03:01]} 10. a3 {[%clk 0:02:40]}  Qe8 {[%clk 0:03:01]} 11. b4 {[%clk 0:02:40]}  Rd8 {[%clk 0:03:01]} 12. Nd2 {[%clk 0:02:40]}  Bg6 {[%clk 0:02:59]} 13. Bf3 {[%clk 0:02:39]}  e5 {[%clk 0:02:58]} 14. d5 {[%clk 0:02:36]}  e4 {[%clk 0:02:58]} 15. dxc6 {[%clk 0:02:30]}  Qe5 {[%clk 0:02:55]} 16. g3 {[%clk 0:02:25]}  Qxc3 {[%clk 0:02:55]} 17. cxb7 {[%clk 0:01:42]}  Qxa1 {[%clk 0:02:50]} 18. Be2 {[%clk 0:01:40]}  Qe5 {[%clk 0:02:45]} 19. Nc4 {[%clk 0:01:40]}  Qe6 {[%clk 0:02:45]} 20. Qa4 {[%clk 0:01:39]}  Bxg3 {[%clk 0:02:41]} 21. fxg3 {[%clk 0:01:36]}  Qxh3 {[%clk 0:02:41]} 22. Qxa7 {[%clk 0:01:26]}  Qxg3+ {[%clk 0:02:41]} 23. Kh1 {[%clk 0:01:26]}  Rd5 {[%clk 0:02:34]} 24. Rf4 {[%clk 0:00:22]}  Qh3+ {[%clk 0:02:30]} 25. Kg1 {[%clk 0:00:22]}  Rg5+ {[%clk 0:02:31]} 26. Bg4 {[%clk 0:00:22]}  Nxg4 {[%clk 0:02:29]} 27. b8=Q {[%clk 0:00:15]}  Nh2+ {[%clk 0:02:24]} 28. Kh1 {[%clk 0:00:13]}  Nf3# {[%clk 0:02:23]} 0-1


[Site "https://www.chess.com"]